bitfinex-derivatives/quotes_SOLF0:USTF0_20250823
["timestamp","ask_amount","ask_price","bid_price","bid_amount"]
[1755921866814,0.03456381,198.95,198.93,4.59496467]
[1755921867027,0.03456381,198.95,198.91,0.03872979]
[1755921868418,2.87456381,198.95,198.91,0.03872979]
[1755921871518,2.87456381,198.95,198.91,5.06802979]
[1755921872124,0.03456381,198.95,198.91,5.06802979]
[1755921873023,2.87456381,198.95,198.91,5.06802979]
[1755921875516,2.89,198.93,198.91,0.03872979]
[1755921875722,0.03456381,198.95,198.89,2.56872979]
[1755921875929,2.89,198.94,198.9,10.80482401]
[1755921876123,2.89,198.94,198.89,2.56872979]
[1755921876328,2.89,198.94,198.9,15.38059801]
[1755921876521,2.89,198.94,198.91,4.57499237]
[1755921876723,2.89,198.94,198.92,4.57499237]
[1755921876919,2.89,198.94,198.89,2.56872979]
[1755921877222,2.89,198.93,198.9,10.80567503]
[1755921877428,2.89,198.93,198.89,2.56872979]
[1755921877627,2.89,198.93,198.9,6.44906421]
[1755921877828,2.89,198.93,198.89,2.56872979]
[1755921878129,2.89,198.92,198.9,4.61045915]
[1755921878331,0.03456381,198.95,198.88,3.33957283]
[1755921878525,2.89,198.91,198.88,3.33957283]
[1755921878826,2.89,198.91,198.88,2.78957283]
[1755921879027,2.89,198.91,198.88,0.83957283]
[1755921879329,2.89,198.94,198.88,0.83957283]
[1755921880529,2.89,198.94,198.88,5.86967283]
[1755921880723,2.89,198.94,198.88,0.83957283]
[1755921880927,2.89,198.93,198.89,4.61161115]
[1755921881227,2.92456381,198.95,198.88,0.83957283]
[1755921881427,2.92456381,198.95,198.89,4.65387452]
[1755921881731,2.92456381,198.95,198.88,0.83957283]
[1755921881931,2.92456381,198.95,198.89,4.65390485]
[1755921882133,2.92456381,198.95,198.88,0.83957283]
[1755921882327,2.92456381,198.95,198.89,4.6539497]
[1755921882526,2.92456381,198.95,198.89,5.0298]
[1755921884233,2.89,198.94,198.9,4.65531704]
[1755921884435,0.03456381,198.95,198.89,5.0298]
[1755921884632,2.89,198.92,198.9,4.65737311]
[1755921884834,2.89,198.92,198.89,5.0298]
[1755921885035,2.89,198.92,198.9,4.65738203]
[1755921885228,2.89,198.92,198.89,5.0298]
[1755921885429,2.89,198.92,198.9,4.65796744]
[1755921885639,2.89,198.92,198.89,5.0298]
[1755921885933,2.89,198.92,198.9,4.65780921]
[1755921886135,2.89,198.92,198.89,5.0298]
[1755921886335,2.89,198.92,198.9,6.49871044]
[1755921886538,2.89,198.92,198.89,5.0298]
[1755921886832,2.89,198.92,198.9,6.49871393]
[1755921887134,2.89,198.92,198.89,5.0298]
[1755921887438,2.89,198.92,198.9,6.49895924]
[1755921887639,2.89,198.92,198.91,4.65788144]
[1755921887839,2.89,198.92,198.89,5.0298]
[1755921888038,2.89,198.92,198.9,6.49902227]
[1755921888341,2.89,198.92,198.91,4.65809816]
[1755921888835,0.03456381,198.95,198.87,5.0304]
[1755921888836,2.89,198.91,198.87,5.0304]
[1755921889040,2.89,198.91,198.88,10.86502969]
[1755921889238,2.89,198.91,198.89,6.50108779]
[1755921889434,2.89,198.91,198.9,4.65944768]
[1755921889637,2.92231309,198.91,198.9,4.65944768]
[1755921890036,2.92231309,198.91,198.87,5.0304]
[1755921890237,2.92231309,198.91,198.88,10.86840342]
[1755921890537,2.92231309,198.91,198.89,6.50314575]
[1755921890738,2.92231309,198.91,198.88,5.0301]
[1755921890934,2.92231309,198.91,198.89,6.50294971]
[1755921891139,2.92231309,198.91,198.88,5.0301]
[1755921891341,2.92231309,198.91,198.89,6.50168262]
[1755921891541,2.92231309,198.91,198.88,5.0301]
[1755921891741,2.92231309,198.91,198.89,6.50166309]
[1755921891942,2.92231309,198.91,198.88,5.0301]
[1755921892140,2.92231309,198.91,198.89,6.50167452]
[1755921892345,2.92231309,198.91,198.88,5.0301]
[1755921892545,2.92231309,198.91,198.89,4.65975764]
[1755921892744,2.92231309,198.91,198.88,5.0301]
[1755921893042,2.92231309,198.91,198.89,6.50284469]
[1755921893245,2.92231309,198.91,198.88,5.0301]
[1755921893442,2.92231309,198.91,198.89,4.66051505]
[1755921893643,0.03231309,198.91,198.88,4.7201]
[1755921893845,0.03231309,198.91,198.89,4.66011554]
[1755921894047,0.03231309,198.91,198.88,4.7201]
[1755921894243,0.03231309,198.91,198.89,4.65663443]
[1755921894442,0.03231309,198.91,198.88,4.7201]
[1755921894737,0.03231309,198.91,198.89,4.65660491]
[1755921894944,0.03231309,198.91,198.88,4.7201]
[1755921895141,0.03231309,198.91,198.89,4.65661181]
[1755921895341,0.03231309,198.91,198.88,4.7201]
[1755921895543,0.03231309,198.91,198.89,6.49741831]
[1755921895844,0.03231309,198.91,198.88,4.7201]
[1755921896045,0.03231309,198.91,198.89,6.49742081]
[1755921896248,0.03231309,198.91,198.88,4.7201]
[1755921896448,0.03231309,198.91,198.88,4.4701]
[1755921898149,0.03231309,198.91,198.89,8.85773557]
[1755921898451,0.03231309,198.91,198.89,2.13740074]
[1755921899250,0.03231309,198.91,198.89,2.03740074]
[1755921899749,0.03231309,198.91,198.88,4.4701]
[1755921899949,0.03231309,198.91,198.89,4.65647497]
[1755921900250,2.89,198.9,198.88,2.13740074]
[1755921900745,0.03231309,198.91,198.85,2.13740074]
[1755921900942,2.89,198.89,198.86,6.49920104]
[1755921901248,2.89,198.89,198.85,2.13740074]
[1755921901643,2.89,198.89,198.86,6.49425861]
[1755921901841,2.89,198.88,198.85,2.13740074]
[1755921902054,2.89,198.88,198.86,4.65248503]
[1755921902242,2.92231309,198.91,198.82,316.2745767]
[1755921902446,2.92231309,198.91,198.83,6.49128458]
[1755921902753,2.89,198.91,198.85,5.0309]
[1755921902944,2.89,198.92,198.86,4.65229991]
[1755921903141,2.80784249,198.89,198.85,5.0309]
[1755921903348,2.80784249,198.89,198.86,6.48971236]
[1755921903658,2.80784249,198.89,198.85,5.0309]
[1755921903950,2.80784249,198.89,198.86,6.48949969]
[1755921904148,2.80784249,198.89,198.85,5.0309]
[1755921904354,2.80784249,198.89,198.86,6.48896576]
[1755921904651,2.80784249,198.89,198.85,5.0309]
[1755921904852,2.80784249,198.89,198.86,6.48858845]
[1755921905053,2.80784249,198.89,198.85,5.0309]
[1755921905253,2.80784249,198.89,198.86,6.48882748]
[1755921905552,2.80784249,198.89,198.85,5.0309]
[1755921905753,2.80784249,198.89,198.86,6.49043532]
[1755921905947,2.80784249,198.89,198.85,5.0309]
[1755921906148,2.80784249,198.89,198.86,6.49277275]
[1755921906350,2.77,198.88,198.87,6.49308893]
[1755921907453,0.03784249,198.89,198.87,6.49352448]
[1755921907754,0.03784249,198.89,198.88,4.65351694]
[1755921908854,2.80784249,198.89,198.84,5.0311]
[1755921909062,2.80784249,198.89,198.85,6.49346106]
[1755921909354,2.80784249,198.89,198.86,6.49346106]
[1755921909554,2.80784249,198.89,198.87,4.65387822]
[1755921909754,2.80784249,198.89,198.84,5.0311]
[1755921910050,2.80784249,198.89,198.85,6.48821803]
[1755921910354,2.77,199.03,198.88,3.34090364]
[1755921910650,2.77,199.03,198.89,11.1890716]
[1755921910954,2.77,198.97,198.9,4.70652648]
[1755921911254,7.7982,198.97,198.91,9.71101263]
[1755921911552,5.0282,198.97,198.92,5.00448615]
[1755921911754,5.0282,198.97,198.89,5.0298]
[1755921911755,2.77,198.95,198.89,5.0298]
[1755921912055,2.77,198.95,198.9,5.02589165]
[1755921912353,2.77,198.95,198.91,5.02589165]
[1755921912653,2.77,198.95,198.92,5.02589165]
[1755921912956,2.77,198.95,198.89,5.0298]
[1755921913154,2.77,198.95,198.9,5.02807529]
[1755921913354,2.77,198.95,198.91,5.02807529]
[1755921913556,2.77,198.96,198.92,5.02848545]
[1755921913757,2.77,198.96,198.89,5.0298]
[1755921914053,2.77,198.96,198.9,9.6588296]
[1755921914245,2.77,198.94,198.91,9.6588296]
[1755921914450,2.77,198.93,198.87,5.0305]
[1755921914655,2.77,198.92,198.88,9.62876515]
[1755921914953,3.34090364,198.98,198.89,7.12876515]
[1755921914954,2.77,198.94,198.89,7.12876515]
[1755921915153,2.77,198.93,198.87,5.0305]
[1755921915354,2.77,198.96,198.88,9.62807419]
[1755921915556,2.77,198.96,198.89,4.59807419]
[1755921915853,2.77,198.96,198.9,4.59807419]
[1755921916054,2.77,198.96,198.88,5.03]
[1755921916254,2.77,198.96,198.89,4.59825177]
[1755921916556,2.77,198.96,198.88,5.03]
[1755921916755,2.77,198.96,198.89,4.59848395]
[1755921916952,2.77,198.96,198.88,5.03]
[1755921917256,2.77,198.96,198.89,4.59848395]
[1755921917556,2.77,198.96,198.88,5.03]
[1755921918056,2.77,198.95,198.88,5.03]
[1755921919256,2.77,198.95,198.82,217.73156571]
[1755921919257,2.77,198.95,198.86,5.0307]
[1755921919458,2.77,198.95,198.84,3.34090364]
[1755921919653,2.77,199.02,198.85,6.21113225]
[1755921919857,7.7975,199.0,198.9,5.0296]
[1755921920352,3.34090364,199.01,198.9,5.0296]
[1755921920558,2.77,198.98,198.9,5.0296]
[1755921921658,7.7979,198.98,198.9,5.0296]
[1755921922359,7.7979,198.98,198.91,2.13695466]
[1755921923961,2.77,198.98,198.91,2.13695466]
[1755921924862,2.77,198.98,198.92,4.59405155]
[1755921925161,2.77,198.98,198.93,4.59405155]
[1755921925365,2.77,198.98,198.91,2.13695466]
[1755921925555,2.77,199.02,198.95,2.13695466]
[1755921925759,2.77,199.02,198.96,4.59394674]
[1755921925965,2.77,199.02,198.95,2.13695466]
[1755921926267,2.77,199.02,198.96,4.59164345]
[1755921926562,2.77,199.01,198.93,2.13695466]
[1755921926767,2.77,198.99,198.94,4.97424975]
[1755921926955,2.77,198.99,198.93,2.13695466]
[1755921927264,2.77,198.97,198.94,4.97375989]
[1755921927466,2.77,198.97,198.95,4.97375989]
[1755921927663,2.77,198.97,198.93,2.13695466]
[1755921927858,2.77,198.97,198.94,4.97248481]
[1755921928060,2.77,198.97,198.95,4.97248481]
[1755921928262,2.77,198.97,198.89,5.0298]
[1755921928557,2.77,199.0,198.91,5.0294]
[1755921928757,2.77,199.0,198.92,4.97202973]
[1755921928961,2.77,199.0,198.93,4.97212906]
[1755921929164,2.77,199.0,198.94,4.97212906]
[1755921929355,2.77,198.99,198.95,4.971633]
[1755921929561,2.77,198.99,198.91,5.0294]
[1755921929861,2.77,198.99,198.92,6.86403215]
[1755921930062,2.77,198.99,198.93,4.97109329]
[1755921930263,2.77,198.99,198.94,4.97109329]
[1755921930566,5.0267,199.02,198.95,4.97109329]
[1755921930567,2.77,198.98,198.95,4.97109329]
[1755921930868,2.77,198.98,198.88,8.36882318]
[1755921931161,2.77,198.98,198.89,8.71173954]
[1755921931366,2.77,198.98,198.9,6.86333836]
[1755921931566,2.77,198.98,198.91,6.86333836]
[1755921931866,2.77,198.98,198.92,6.86333836]
[1755921932058,2.77,198.98,198.93,4.97053017]
[1755921932263,2.77,198.98,198.94,4.97053017]
[1755921932567,2.77,198.98,198.88,8.36892318]
[1755921932766,2.77,198.98,198.89,6.86262847]
[1755921932966,2.77,198.98,198.9,6.86262847]
[1755921933167,2.77,198.98,198.91,6.86262847]
[1755921933361,2.77,198.98,198.92,4.97015551]
[1755921933563,5.0272,199.0,198.93,4.97015551]
[1755921933760,2.81,199.01,198.94,4.97015551]
[1755921934067,2.81,199.01,198.91,5.0295]
[1755921934363,2.81,199.01,198.92,11.88987142]
[1755921934570,2.81,199.01,198.93,4.96880264]
[1755921934766,2.81,199.01,198.92,5.029]
[1755921934767,2.81,199.01,198.94,4.96880264]
[1755921935069,2.81,199.01,198.92,5.029]
[1755921935269,2.81,199.01,198.93,4.96817859]
[1755921935568,2.81,199.01,198.94,4.96817859]
[1755921935769,2.81,199.01,198.92,5.029]
[1755921935969,2.81,199.01,198.93,4.96767553]
[1755921936170,2.81,199.01,198.94,2.46767553]
[1755921936371,2.81,199.01,198.92,5.029]
[1755921938267,2.81,199.01,198.91,3.33872318]
[1755921938771,2.81,199.01,198.92,1.89039865]
[1755921938968,2.81,199.01,198.91,3.33872318]
[1755921939269,2.81,199.01,198.92,1.89039865]
[1755921939470,2.81,199.01,198.91,3.33872318]
[1755921939672,2.81,199.01,198.94,5.0285]
[1755921941565,9.33828977,199.06,198.92,25.1456]
[1755921941764,2.81,199.05,198.97,3.33872318]
[1755921942070,2.81,199.05,198.98,4.83138761]
[1755921942270,2.81,199.05,198.99,4.83138761]
[1755921942474,2.81,199.05,198.97,3.33872318]
[1755921942675,2.81,199.05,198.98,4.82891433]
[1755921942969,2.81,199.05,198.99,4.82891433]
[1755921943275,2.81,199.04,199.0,4.83171548]
[1755921943473,2.81,199.04,198.97,3.33872318]
[1755921943675,2.81,199.04,198.98,9.85785734]
[1755921943875,6.52828977,199.06,198.99,4.83015734]
[1755921944072,2.81,199.03,198.98,5.0277]
[1755921944272,2.81,199.03,198.99,4.83066002]
[1755921944570,9.33828977,199.06,198.98,5.0277]
[1755921944769,6.52828977,199.06,198.99,9.85617031]
[1755921945073,6.52828977,199.06,199.0,4.82887031]
[1755921945377,6.52828977,199.06,198.99,5.0273]
[1755921945576,6.52828977,199.06,199.0,4.82458751]
[1755921945777,6.52828977,199.06,198.99,5.0273]
[1755921945972,6.52828977,199.06,199.0,4.82458026]
[1755921946169,6.52828977,199.06,198.99,5.0273]
[1755921946374,6.52828977,199.06,199.0,4.82460656]
[1755921946674,9.33828977,199.06,199.01,4.82460656]
[1755921946872,2.81,199.05,199.02,4.82460656]
[1755921947272,2.81,199.05,199.03,4.82322969]
[1755921947472,2.81,199.05,198.99,5.0273]
[1755921947770,2.81,199.05,199.0,4.82094402]
[1755921947976,2.81,199.05,199.01,4.82094402]
[1755921948178,2.81,199.05,199.02,4.82094402]
[1755921948477,2.81,199.05,198.99,5.0273]
[1755921948672,2.81,199.05,199.0,4.81761219]
[1755921948873,2.81,199.05,198.95,3.33872318]
[1755921949074,2.81,199.05,198.96,11.62571625]
[1755921949280,2.81,199.05,198.97,9.74061204]
[1755921949481,2.81,199.05,198.98,9.74061204]
[1755921949778,2.81,199.05,198.95,3.33872318]
[1755921949779,2.81,199.05,198.99,4.81991664]
[1755921949978,2.81,199.04,199.0,4.81991664]
[1755921950171,2.81,199.04,198.95,3.33872318]
[1755921950472,2.81,199.04,198.98,5.0275]
[1755921950679,2.81,199.03,198.99,4.81799953]
[1755921950979,2.81,199.03,199.0,4.81799953]
[1755921951178,2.81,199.03,198.98,5.0275]
[1755921951381,2.81,199.05,198.99,4.81751992]
[1755921951579,2.81,199.05,198.96,5.0282]
[1755921951781,2.81,199.05,198.97,4.81794902]
[1755921951980,2.81,199.05,198.98,4.81794902]
[1755921952284,2.81,199.05,198.96,5.0282]
[1755921952582,2.81,199.05,198.98,5.0277]
[1755921953385,2.81,199.05,198.99,4.8185276]
[1755921953581,2.81,199.05,198.98,5.0277]
[1755921954583,2.81,199.05,198.99,4.81896106]
[1755921954783,2.81,199.05,198.98,5.0277]
[1755921954983,2.81,199.05,198.99,4.81834438]
[1755921955282,2.81,199.05,198.98,5.0277]
[1755921956680,2.81,199.05,198.99,4.79987905]
[1755921956876,2.81,199.05,198.89,149.5101]
[1755921957180,2.81,199.04,198.92,9.10593998]
[1755921957375,5.0266,199.03,198.95,5.0283]
[1755921957578,2.81,199.02,198.96,4.80099553]
[1755921957782,3.33872318,199.05,198.89,25.1501]
[1755921957783,2.81,199.04,198.97,4.80099553]
[1755921957982,2.81,199.04,198.9,3.33872318]
[1755921958183,2.81,199.04,198.91,4.80250482]
[1755921958386,2.81,199.0,198.92,4.80250482]
[1755921958589,5.48049829,199.0,198.93,4.80250482]
[1755921958883,5.48049829,199.0,198.91,2.67049829]
[1755921958884,2.81,198.97,198.94,4.80250482]
[1755921959086,2.81,198.97,198.91,2.67049829]
[1755921959286,2.81,198.96,198.92,4.80468568]
[1755921959480,2.67049829,198.98,198.93,4.80507013]
[1755921959686,5.48049829,199.0,198.94,4.80507013]
[1755921959986,5.48049829,199.0,198.91,2.67049829]
[1755921960186,10.50789829,199.0,198.92,9.83432626]
[1755921960492,2.81,199.0,198.93,4.80532626]
[1755921960689,2.81,199.0,198.88,4.17330941]
[1755921960884,2.81,199.0,198.89,2.30861752]
[1755921961085,2.81,199.0,198.88,4.17330941]
[1755921961581,5.0276,198.99,198.9,5.0297]
[1755921961887,2.81,198.98,198.9,5.0297]
[1755921962281,2.81,198.97,198.9,5.0297]
[1755921962589,2.81,198.96,198.82,190.06698247]
[1755921962792,2.81,198.96,198.83,4.32801481]
[1755921962988,2.81,198.95,198.84,9.35901481]
[1755921963189,2.81,198.95,198.84,5.031]
[1755921963385,2.81,198.91,198.84,5.031]
[1755921965185,2.81,198.91,198.82,183.39367306]
[1755921965186,2.81,198.89,198.82,183.39367306]
[1755921965486,4.17330941,198.88,198.82,183.39367306]
[1755921965690,5.0305,198.87,198.82,183.39367306]
[1755921965889,2.81,198.85,198.82,183.39367306]
[1755921966293,2.81,198.86,198.75,5.0333]
[1755921966591,2.81,198.84,198.76,4.32654408]
[1755921966793,2.81,198.84,198.75,5.0333]
[1755921966991,2.81,198.88,198.76,4.32768968]
[1755921967192,2.81,198.88,198.77,4.32768968]
[1755921967386,2.81,198.88,198.78,4.32359971]
[1755921967590,2.81,198.88,198.76,4.17330941]
[1755921967788,2.81,198.88,198.77,4.3235762]
[1755921968095,2.81,198.88,198.81,5.032]
[1755921969200,2.81,198.88,198.82,4.91062612]
[1755921969498,2.81,198.88,198.78,5.0326]
[1755921969697,2.81,198.88,198.79,6.74754843]
[1755921969906,2.81,198.88,198.8,4.90869533]
[1755921970198,2.81,198.88,198.81,4.90869533]
[1755921970398,2.81,198.88,198.82,4.90869533]
[1755921970598,2.81,198.88,198.78,5.0326]
[1755921970796,2.81,198.88,198.79,6.74824266]
[1755921971002,2.81,198.88,198.8,4.90917855]
[1755921971307,2.81,198.88,198.81,4.90917855]
[1755921971607,2.81,198.88,198.8,5.0322]
[1755921971801,2.81,198.88,198.81,4.90798957]
[1755921972004,2.81,198.88,198.8,5.0322]
[1755921972203,2.81,198.88,198.81,4.86126789]
[1755921972407,2.81,198.88,198.8,5.0322]
[1755921972697,2.81,198.88,198.81,4.86034612]
[1755921972905,2.81,198.88,198.82,4.77414845]
[1755921973095,2.81,198.87,198.83,4.77414845]
[1755921973301,2.81,198.87,198.8,5.0322]
[1755921973702,2.81,198.87,198.81,9.63430297]
[1755921974008,2.81,198.87,198.82,4.77405351]
[1755921974201,2.81,198.87,198.83,4.77279302]
[1755921974503,2.81,198.87,198.8,5.0322]
[1755921974705,2.81,198.87,198.81,9.62927068]
[1755921975005,2.81,198.87,198.82,4.77155523]
[1755921975205,2.81,198.87,198.83,4.77155523]
[1755921975515,2.81,198.87,198.78,5.0327]
[1755921975804,2.81,198.87,198.79,9.63351374]
[1755921976005,2.81,198.87,198.8,9.63351374]
[1755921976199,2.81,198.87,198.81,4.77366939]
[1755921976401,5.0297,198.9,198.82,4.77366939]
[1755921976597,2.81,198.92,198.79,4.17330941]
[1755921976806,2.81,198.92,198.8,9.63335264]
[1755921977107,2.81,198.92,198.81,9.63068296]
[1755921977405,2.81,198.92,198.82,4.77357978]
[1755921977609,2.81,198.92,198.83,4.77357978]
[1755921977810,2.81,198.92,198.79,4.17330941]
[1755921978012,2.81,198.92,198.8,9.62683321]
[1755921978307,2.81,198.92,198.81,9.62683321]
[1755921978509,2.81,198.89,198.82,4.77047556]
[1755921978807,2.81,198.89,198.8,5.0322]
[1755921979009,2.81,198.89,198.81,4.7697659]
[1755921979204,2.81,198.89,198.82,4.7697659]
[1755921979407,2.81,198.89,198.8,5.0322]
[1755921979704,2.81,198.89,198.81,4.76900191]
[1755921979904,2.81,198.89,198.82,4.76900191]
[1755921980105,2.81,198.89,198.81,5.0318]
[1755921980405,2.81,198.89,198.82,4.76989202]
[1755921980709,2.81,198.89,198.81,5.0318]
[1755921980910,2.81,198.89,198.82,4.76919866]
[1755921981109,2.81,198.89,198.81,5.0318]
[1755921981311,2.81,198.89,198.82,4.76919866]
[1755921981610,2.81,198.89,198.81,5.0318]
[1755921981809,2.81,198.89,198.82,4.7697492]
[1755921982006,2.81,198.89,198.81,5.0318]
[1755921982210,2.81,198.89,198.82,9.8013441]
[1755921982411,2.81,198.89,198.83,4.77023369]
[1755921982609,2.81,198.89,198.82,5.0315]
[1755921982813,2.81,198.89,198.83,4.77025847]
[1755921983013,2.81,198.89,198.82,5.0315]
[1755921983214,2.81,198.89,198.83,4.77016664]
[1755921983414,2.81,198.89,198.82,5.0315]
[1755921983715,2.81,198.89,198.83,4.7698738]
[1755921984014,2.81,198.89,198.82,5.0315]
[1755921984215,2.81,198.89,198.83,4.7701962]
[1755921984414,2.81,198.89,198.82,5.0315]
[1755921984614,2.81,198.89,198.83,4.7699096]
[1755921984813,2.81,198.89,198.82,5.0315]
[1755921985014,2.81,198.89,198.83,4.7699096]
[1755921985314,2.81,198.89,198.82,5.0315]
[1755921985514,2.81,198.89,198.83,4.76968399]
[1755921985714,2.81,198.89,198.82,5.0315]
[1755921985919,2.81,198.89,198.83,4.76968399]
[1755921986109,2.81,198.89,198.82,5.0315]
[1755921986311,2.81,198.89,198.83,4.76968399]
[1755921986508,2.81,198.89,198.82,5.0315]
[1755921990217,5.029,198.93,198.83,4.77012037]
[1755921990521,5.029,198.93,198.79,29.33580941]
[1755921990522,2.81,198.92,198.84,4.77046331]
[1755921990820,2.81,198.92,198.85,4.77023466]
[1755921991121,2.81,198.92,198.8,25.161]
[1755921991316,2.81,198.92,198.81,13.94154883]
[1755921991620,2.81,198.9,198.82,9.62665971]
[1755921991819,2.81,198.9,198.79,29.33580941]
[1755921992021,2.81,198.9,198.8,15.78165038]
[1755921992221,2.81,198.9,198.81,9.62916497]
[1755921992421,2.81,198.9,198.82,9.62916497]
[1755921992621,2.81,198.9,198.83,14.66046497]
[1755921992824,2.81,198.9,198.84,4.77148322]
[1755921993020,2.81,198.89,198.85,4.77148322]
[1755921993220,2.81,198.89,198.83,5.0313]
[1755921993419,2.81,198.89,198.84,9.63862843]
[1755921993622,2.81,198.89,198.85,4.77507083]
[1755921993819,2.81,198.89,198.86,4.77507083]
[1755921994124,2.81,198.89,198.81,5.0319]
[1755921994321,2.81,198.89,198.82,9.64081233]
[1755921994517,2.81,198.89,198.83,9.64081233]
[1755921994722,2.69,198.88,198.84,4.77725473]
[1755921994921,2.69,198.87,198.85,4.77725473]
[1755921995127,2.69,198.87,198.86,4.77725473]
[1755921997721,5.03,198.9,198.86,4.77725473]
[1755921997926,2.69,198.88,198.87,4.77725473]
[1755921998331,25.1451,198.93,198.77,2.28330941]
[1755921998527,2.69,198.91,198.78,15.83964491]
[1755921998718,2.69,198.91,198.8,4.17330941]
[1755921999026,2.69,198.91,198.81,15.22964491]
[1755921999323,2.69,198.91,198.82,11.50691589]
[1755921999523,5.03,198.89,198.83,9.66338483]
[1755921999724,5.03,198.89,198.84,9.66338483]
[1755922000024,2.69,198.88,198.85,9.66338483]
[1755922000223,2.69,198.88,198.86,4.78840879]
[1755922000425,2.69,198.88,198.87,4.78840879]
[1755922001230,2.69,198.88,198.87,4.79581366]
[1755922001731,2.69,198.88,198.87,4.79925326]
[1755922002325,2.69,198.88,198.87,9.72132641]
[1755922002830,25.1426,198.95,198.87,9.72132641]
[1755922002831,5.0296,198.91,198.87,9.72132641]
[1755922003030,5.0296,198.91,198.88,9.72080552]
[1755922003333,2.69,198.9,198.89,4.79925326]
[1755922006733,2.69,198.9,198.89,1.88925326]
[1755922006932,5.0303,198.88,198.82,0.19]
[1755922007231,2.69,198.87,198.83,6.7814135]
[1755922007428,2.69,198.87,198.84,6.7814135]
[1755922007733,2.69,198.87,198.85,6.7814135]
[1755922007927,2.69,198.87,198.86,4.92925673]
[1755922009429,2.69,198.94,198.86,5.33925673]
[1755922009630,2.69,198.94,198.87,6.78235806]
[1755922009829,2.69,198.94,198.86,0.41]
[1755922009830,2.69,198.94,198.88,4.92925673]
[1755922010029,4.17330941,198.95,198.89,4.92925673]
[1755922010236,2.69,198.91,198.86,0.41]
[1755922010533,5.0294,198.92,198.87,7.19496182]
[1755922010733,5.0294,198.92,198.88,4.93197202]
[1755922010936,2.69,198.91,198.89,4.93197202]
[1755922011134,2.69,198.91,198.9,4.93197202]
[1755922013336,2.69,198.91,198.9,4.93217895]
[1755922015538,2.69,198.91,198.9,4.9322542]
[1755922016439,2.69,198.91,198.87,0.41]
[1755922016636,2.69,198.91,198.88,5.34235446]
[1755922016942,2.69,198.91,198.88,0.41]
[1755922018237,7.7187,198.94,198.91,0.41]
[1755922018543,126.97,198.98,198.92,0.41]
[1755922018745,2.69,198.97,198.93,4.72586025]
[1755922018947,2.69,198.96,198.92,0.41]
[1755922019146,2.69,198.96,198.93,4.72593783]
[1755922019340,2.69,198.96,198.92,0.41]
[1755922019547,7.7182,198.96,198.93,4.69375783]
[1755922019747,7.7182,198.96,198.92,0.41]
[1755922019938,7.7182,198.96,198.93,4.69233783]
[1755922020243,7.7186,198.95,198.92,0.41]
[1755922020444,2.69,198.94,198.92,0.41]
[1755922021046,2.69,198.94,198.89,0.41]
[1755922021247,2.69,198.94,198.91,0.41]
[1755922021448,2.69,198.94,198.92,9.61889903]
[1755922021644,2.69,198.94,198.9,0.41]
[1755922021841,5.0286,198.95,198.92,0.41]
[1755922022037,7.7186,198.95,198.92,0.41]
[1755922022647,5.0286,198.95,198.93,0.41]
[1755922024046,5.0286,198.95,198.94,4.66189505]
[1755922024245,5.028,198.97,198.93,0.41]
[1755922024446,2.73,198.96,198.93,0.41]
[1755922027945,129.2675,198.99,198.87,4.17330941]
[1755922028145,5.0275,198.99,198.89,0.4]
[1755922028346,5.0275,198.99,198.91,0.4]
[1755922028548,5.0275,198.99,198.93,0.4]
[1755922028742,7.7575,198.99,198.95,0.4]
[1755922028940,2.73,198.98,198.95,0.4]
[1755922029542,2.73,198.97,198.95,0.4]
[1755922029738,2.73,198.97,198.9,4.17330941]